fUST/lending_fUST_20240912
["ID","MTS","AMOUNT","RATE_DAILY","PERIOD"]
[337786016,1726117846079,-500.0,0.00021917,2]
[337786017,1726117846089,-426.02987266,0.00021917,2]
[337786018,1726117846099,-22020.08,0.00021917,2]
[337786019,1726117846107,-500.0,0.00021917,2]
[337786020,1726117846117,-500.0,0.00021917,2]
[337786021,1726117846126,-500.0,0.00021917,2]
[337786022,1726117846135,-500.0,0.00021917,2]
[337786023,1726117846145,-500.0,0.00021917,2]
[337786024,1726117846155,-500.0,0.00021917,2]
[337786025,1726117846164,-500.0,0.00021917,2]
[337786026,1726117846175,-500.0,0.00021917,2]
[337786027,1726117846184,-500.0,0.00021917,2]
[337786028,1726117846194,-501.56382273,0.00021917,2]
[337786029,1726117846203,-500.0,0.00021917,2]
[337786030,1726117846213,-1458.03,0.00021917,2]
[337786031,1726117846223,-565.73,0.00021917,2]
[337786032,1726117846232,-540.55,0.00021917,2]
[337786033,1726117846241,-1410.29,0.00021917,2]
[337786034,1726117846251,-631.56,0.00021917,2]
[337786035,1726117846260,-500.0,0.00021917,2]
[337786036,1726117846270,-500.0,0.00021917,2]
[337786037,1726117846280,-500.0,0.00021917,2]
[337786038,1726117846289,-504.20783263,0.00021917,2]
[337786039,1726117846299,-500.0,0.00021917,2]
[337786040,1726117846309,-500.0,0.00021917,2]
[337786041,1726117846319,-500.0,0.00021917,2]
[337786042,1726117846328,-1649.99,0.00021917,2]
[337786043,1726117846338,-500.0,0.00021917,2]
[337786044,1726117846347,-500.0,0.00021917,2]
[337786045,1726117846357,-500.0,0.00021917,2]
[337786046,1726117846366,-500.0,0.00021917,2]
[337786047,1726117846376,-500.0,0.00021917,2]
[337786048,1726117846386,-1501.27,0.00021917,2]
[337786049,1726117846395,-500.0,0.00021917,2]
[337786050,1726117846405,-502.34866947,0.00021917,2]
[337786051,1726117846418,-1090.97,0.00021917,2]
[337786052,1726117846427,-501.59701843,0.00021917,2]
[337786053,1726117846439,-1902.71,0.00021917,2]
[337786054,1726117846448,-500.0,0.00021917,2]
[337786055,1726117846458,-500.0,0.00021917,2]
[337786056,1726117846468,-500.0,0.00021917,2]
[337786057,1726117846478,-631.97580806,0.00021917,2]
[337786059,1726118532984,6200.69,0.00019,2]
[337786060,1726118735981,-291.6300138,0.00019096,2]
[337786061,1726118736005,-765.20758033,0.00019147,2]
[337786063,1726118758353,-366.47904532,0.00019147,2]
[337786064,1726118761078,-124.61523865,0.00019147,2]
[337786071,1726118832140,-176.659631,0.00019245,2]
[337786072,1726118832163,-176.659631,0.00019293,2]
[337786073,1726118832185,-176.659631,0.00019341,2]
[337786074,1726118832206,-18.74318735,0.00019834,2]
[337786077,1726118835105,-231.25681265,0.00019834,2]
[337786078,1726118835127,-24.89049933,0.00019848,2]
[337786079,1726118836090,-129.47196153,0.00019848,2]
[337786080,1726118836114,-250.0,0.00019888,2]
[337786081,1726118836136,-219.64877053,0.00019897,2]
[337786083,1726118849111,-3.38027248,0.00019897,2]
[337786084,1726118849135,-250.0,0.00019943,2]
[337786085,1726118849156,-634.5794697,0.00019949,2]
[337786094,1726118947094,-300.0,0.00019259,2]
[337786095,1726118947116,-300.0,0.00019259,2]
[337786096,1726118947138,-140.72788131,0.0001926,2]
[337786097,1726118947172,-5989.73439549,0.0001926,2]
[337786098,1726118952120,-18769.5377232,0.0001926,2]
[337786099,1726118952141,-250.0,0.00019284,2]
[337786100,1726118952163,-119.9752173,0.00019949,2]
[337786101,1726118952186,-251.417233,0.00019959,2]
[337786102,1726118952209,-250.0,0.00019997,2]
[337786103,1726118952230,-2702.82415011,0.0002,2]
[337786104,1726118952253,-250.0,0.00020052,2]
[337786105,1726118952278,-250.0,0.00020106,2]
[337786106,1726118952302,-250.0,0.0002016,2]
[337786107,1726118952328,-204.4072979,0.00020215,2]
[337786108,1726118968132,-45.5927021,0.00020215,2]
[337786109,1726118968154,-250.0,0.00020269,2]
[337786110,1726118968183,-250.0,0.00020323,2]
[337786111,1726118968206,-223.02904299,0.00020332,2]
[337786112,1726118968230,-27.15198807,0.00020378,2]
[337786113,1726118973095,-222.84801193,0.00020378,2]
[337786114,1726118988701,146.61198807,0.00019122,2]
[337786115,1726118988725,161.48037493,0.00019122,2]
[337786158,1726119032410,-223.02904299,0.00020129,2]
[337786160,1726119032420,-591.15521938,0.00020129,2]
[337786179,1726119038377,-20217.07839196,0.00020129,2]
[337786180,1726119038387,-503.036458,0.00020229,2]
[337786181,1726119038397,-250.0,0.00020432,2]
[337786182,1726119038406,-3136.22067521,0.00020441,2]
[337786183,1726119038416,-250.0,0.00020487,2]
[337786184,1726119038426,-250.0,0.00020541,2]
[337786185,1726119038435,-250.0,0.00020595,2]
[337786186,1726119038444,-250.0,0.0002065,2]
[337786187,1726119038454,-250.0,0.00020704,2]
[337786188,1726119038464,-250.0,0.00020759,2]
[337786189,1726119038475,-250.0,0.00020813,2]
[337786190,1726119038484,-250.0,0.00020867,2]
[337786191,1726119038494,-503.036458,0.00020914,2]
[337786192,1726119038504,-866.76215027,0.00020978,2]
[337786193,1726119038514,-835.1035274,0.00020995,2]
[337786194,1726119038525,-835.1035274,0.00021495,2]
[337786195,1726119038534,-503.036458,0.00021599,2]
[337786197,1726119038545,-813.12588426,0.00021797,2]
[337786199,1726119038554,-300.0,0.00021806,2]
[337786201,1726119038564,-1000.0,0.00021807,2]
[337786203,1726119038574,-165.27938832,0.00021817,2]
[337786205,1726119038583,-1207.67761791,0.00021817,2]
[337786207,1726119038592,-501.80812817,0.00021842,2]
[337786209,1726119038602,-13248.0460314,0.00021897,3]
[337786211,1726119038611,-200.37,0.00021897,3]
[337786213,1726119038622,-601.11,0.00021897,3]
[337786215,1726119038632,-500.0,0.00021899,2]
[337786217,1726119038642,-500.0,0.00021899,2]
[337786219,1726119038652,-153.34712413,0.00021899,2]
[337786221,1726119038661,-531.46582173,0.00021899,2]
[337786223,1726119038671,-500.0,0.00021899,2]
[337786226,1726119038681,-500.0,0.00021899,2]
[337786228,1726119038692,-500.0,0.00021899,2]
[337786230,1726119038704,-500.0,0.00021899,2]
[337786232,1726119038714,-500.0,0.00021899,2]
[337786234,1726119038726,-32320.68098804,0.000219,2]
[337786236,1726119038735,-199.72193956,0.00021906,2]
[337786238,1726119038745,-616.76526753,0.00021906,2]
[337786240,1726119038755,-145728.506345,0.00021907,3]
[337786242,1726119038764,-1439.9243786,0.00021916,3]
[337786244,1726119038774,-160.03653084,0.00021916,2]
[337786246,1726119038784,-160.0,0.00021916,2]
[337786248,1726119038794,-156.25321,0.00021917,2]
[337786250,1726119038804,-156.25321,0.00021917,2]
[337786252,1726119038813,-156.25321,0.00021917,2]
[337786254,1726119038824,-156.25321,0.00021917,2]
[337786257,1726119038834,-501.14499569,0.00021917,2]
[337786259,1726119038844,-500.0,0.00021917,2]
[337786260,1726119038853,-151.0,0.00021917,2]
[337786262,1726119038864,-151.0,0.00021917,2]
[337786265,1726119038879,-151.0,0.00021917,2]
[337786267,1726119038889,-151.0,0.00021917,2]
[337786269,1726119038899,-151.0,0.00021917,2]
[337786271,1726119038908,-290.033009,0.00021917,2]
[337786272,1726119038919,-500.0,0.00021917,2]
[337786274,1726119038930,-501.8790204,0.00021917,2]
[337786276,1726119038941,-500.5743349,0.00021917,2]
[337786278,1726119038951,-500.0,0.00021917,2]
[337786280,1726119038963,-500.0,0.00021917,2]
[337786281,1726119038973,-501.85305581,0.00021917,2]
[337786283,1726119038984,-500.0,0.00021917,2]
[337786285,1726119038995,-500.0,0.00021917,2]
[337786287,1726119039005,-224.65760659,0.00021917,2]
[337786289,1726119039015,-500.0,0.00021917,2]
[337786291,1726119039026,-500.0,0.00021917,2]
[337786293,1726119039037,-500.0,0.00021917,2]
[337786295,1726119039047,-500.0,0.00021917,2]
[337786297,1726119039057,-500.0,0.00021917,2]
[337786299,1726119039068,-500.0,0.00021917,2]
[337786301,1726119039079,-500.0,0.00021917,2]
[337786303,1726119039090,-500.0,0.00021917,2]
[337786306,1726119039101,-500.0,0.00021917,2]
[337786307,1726119039112,-500.0,0.00021917,2]
[337786309,1726119039121,-500.0,0.00021917,2]
[337786311,1726119039131,-500.0,0.00021917,2]
[337786312,1726119039142,-497.07445143,0.00021917,2]
[337786314,1726119039154,-500.0,0.00021917,2]
[337786316,1726119039164,-525.30879091,0.00021917,2]
[337786318,1726119039174,-500.0,0.00021917,2]
[337786320,1726119039183,-500.0,0.00021917,2]
[337786322,1726119039193,-500.0,0.00021917,2]
[337786323,1726119039202,-500.0,0.00021917,2]
[337786325,1726119039213,-500.61431952,0.00021917,2]
[337786327,1726119039224,-508.16,0.00021917,2]
[337786328,1726119039233,-500.0,0.00021917,2]
[337786330,1726119039244,-500.0,0.00021917,2]
[337786331,1726119039253,-500.0,0.00021917,2]
[337786333,1726119039263,-601.98244639,0.00021917,2]
[337786334,1726119039273,-500.0,0.00021917,2]
[337786335,1726119039284,-500.0,0.00021917,2]
[337786336,1726119039294,-500.0,0.00021917,2]
[337786337,1726119039304,-500.0,0.00021917,2]
[337786338,1726119039316,-500.0,0.00021917,2]
[337786339,1726119039327,-504.92757202,0.00021917,2]
[337786340,1726119039338,-500.0,0.00021917,2]
[337786341,1726119039351,-500.0,0.00021917,2]
[337786342,1726119039361,-500.0,0.00021917,2]
[337786343,1726119039371,-500.0,0.00021917,2]
[337786344,1726119039381,-500.0,0.00021917,2]
[337786345,1726119039391,-517.80010359,0.00021917,2]
[337786347,1726119039402,-500.0,0.00021917,2]
[337786349,1726119039412,-500.0,0.00021917,2]
[337786351,1726119039421,-500.0,0.00021917,2]
[337786353,1726119039431,-500.0,0.00021917,2]
[337786355,1726119039441,-512.63536904,0.00021917,2]
[337786356,1726119039453,-473.00106924,0.00021917,2]
[337786358,1726119039464,-646.8,0.00021917,2]
[337786359,1726119039475,-500.0,0.00021917,2]
[337786360,1726119039485,-500.0,0.00021917,2]
[337786361,1726119039495,-500.0,0.00021917,2]
[337786362,1726119039505,-503.34619687,0.00021917,2]
[337786363,1726119039517,-500.0,0.00021917,2]
[337786364,1726119039528,-500.0,0.00021917,2]
[337786365,1726119039538,-501.25665635,0.00021917,2]
[337786366,1726119039549,-500.0,0.00021917,2]
[337786367,1726119039559,-500.0,0.00021917,2]
[337786368,1726119039570,-802.21,0.00021917,2]
[337786369,1726119039579,-500.0,0.00021917,2]
[337786370,1726119039591,-500.0,0.00021917,2]
[337786371,1726119039602,-502.80020864,0.00021917,2]
[337786372,1726119039612,-1195.5,0.00021917,2]
[337786373,1726119039622,-500.0,0.00021917,2]
[337786374,1726119039632,-500.0,0.00021917,2]
[337786375,1726119039643,-500.0,0.00021917,2]
[337786376,1726119039652,-500.0,0.00021917,2]
[337786377,1726119039663,-504.886737,0.00021917,2]
[337786378,1726119039672,-502.15972482,0.00021917,2]
[337786379,1726119039682,-500.0,0.00021917,2]
[337786380,1726119039693,-500.0,0.00021917,2]
[337786381,1726119039703,-393.57278461,0.00021917,2]
[337786382,1726119039712,-500.0,0.00021917,2]
[337786383,1726119039722,-500.0,0.00021917,2]
[337786385,1726119039732,-500.0,0.00021917,2]
[337786388,1726119039940,-500.0,0.00021917,2]
[337786390,1726119039949,-156.79114324,0.00021917,2]
[337786392,1726119039959,-500.54038114,0.00021917,2]
[337786394,1726119039968,-1018.33,0.00021917,2]
[337786396,1726119039977,-500.0,0.00021917,2]
[337786397,1726119039988,-500.0,0.00021917,2]
[337786400,1726119039999,-500.0,0.00021917,2]
[337786402,1726119040008,-500.0,0.00021917,2]
[337786404,1726119040018,-500.0,0.00021917,2]
[337786406,1726119040027,-500.0,0.00021917,2]
[337786407,1726119040038,-504.52373986,0.00021917,2]
[337786409,1726119040047,-500.0,0.00021917,2]
[337786412,1726119040057,-500.0,0.00021917,2]
[337786414,1726119040067,-718.69,0.00021917,2]
[337786415,1726119040077,-502.78430225,0.00021917,2]
[337786417,1726119040086,-490.37470131,0.00021917,2]
[337786419,1726119040096,-500.0,0.00021917,2]
[337786420,1726119040105,-509.28939284,0.00021917,2]
[337786421,1726119040115,-500.0,0.00021917,2]
[337786423,1726119040124,-500.0,0.00021917,2]
[337786424,1726119040134,-500.0,0.00021917,2]
[337786426,1726119040144,-500.0,0.00021917,2]
[337786428,1726119040154,-500.0,0.00021917,2]
[337786430,1726119040164,-500.0,0.00021917,2]
[337786432,1726119040175,-500.0,0.00021917,2]
[337786434,1726119040185,-500.0,0.00021917,2]
[337786437,1726119040195,-500.0,0.00021917,2]
[337786438,1726119040204,-500.0,0.00021917,2]
[337786440,1726119040214,-500.0,0.00021917,2]
[337786443,1726119040231,-500.0,0.00021917,2]
[337786444,1726119040241,-500.0,0.00021917,2]
[337786446,1726119040251,-177.96656176,0.00021917,2]
[337786448,1726119040260,-500.0,0.00021917,2]
[337786451,1726119040270,-844.45,0.00021917,2]
[337786453,1726119040280,-500.0,0.00021917,2]
[337786455,1726119040291,-500.0,0.00021917,2]
[337786457,1726119040302,-184.57723403,0.00021917,2]
[337786459,1726119040312,-500.0,0.00021917,2]
[337786461,1726119040322,-500.0,0.00021917,2]
[337786462,1726119040332,-500.0,0.00021917,2]
[337786464,1726119040343,-500.0,0.00021917,2]
[337786465,1726119040353,-500.0,0.00021917,2]
[337786466,1726119040364,-500.0,0.00021917,2]
[337786467,1726119040374,-500.0,0.00021917,2]
[337786468,1726119040384,-262.73228511,0.00021917,2]
[337786469,1726119040395,-677.32,0.00021917,2]
[337786470,1726119040404,-500.0,0.00021917,2]
[337786471,1726119040414,-500.0,0.00021917,2]
[337786472,1726119040424,-500.0,0.00021917,2]
[337786473,1726119040434,-500.0,0.00021917,2]
[337786474,1726119040444,-500.0,0.00021917,2]
[337786475,1726119040454,-500.0,0.00021917,2]
[337786476,1726119040464,-500.0,0.00021917,2]
[337786477,1726119040475,-500.0,0.00021917,2]
[337786478,1726119040485,-500.0,0.00021917,2]
[337786479,1726119040496,-285.90845234,0.00021917,2]
[337786480,1726119040507,-829.33,0.00021917,2]
[337786481,1726119040518,-502.70032257,0.00021917,2]
[337786482,1726119040529,-500.0,0.00021917,2]
[337786483,1726119040539,-500.0,0.00021917,2]
[337786484,1726119040550,-500.0,0.00021917,2]
[337786485,1726119040560,-510.32209435,0.00021917,2]
[337786486,1726119040571,-500.0,0.00021917,2]
[337786487,1726119040580,-500.0,0.00021917,2]
[337786488,1726119040590,-500.0,0.00021917,2]
[337786489,1726119040602,-500.0,0.00021917,2]
[337786490,1726119040613,-338.23549102,0.00021917,2]
[337786491,1726119040623,-500.0,0.00021917,2]
[337786492,1726119040635,-500.0,0.00021917,2]
[337786493,1726119040645,-441.3783437,0.00021917,2]
[337786494,1726119040655,-500.0,0.00021917,2]
[337786495,1726119040664,-500.0,0.00021917,2]
[337786496,1726119040673,-500.0,0.00021917,2]
[337786497,1726119040683,-601.57,0.00021917,2]
[337786498,1726119040694,-500.0,0.00021917,2]
[337786500,1726119040704,-500.0,0.00021917,2]
[337786501,1726119040713,-500.0,0.00021917,2]
[337786503,1726119040724,-500.0,0.00021917,2]
[337786505,1726119040733,-500.0,0.00021917,2]
[337786507,1726119040744,-501.04321213,0.00021917,2]
[337786509,1726119040754,-503.34334249,0.00021917,2]
[337786510,1726119040763,-779.66,0.00021917,2]
[337786511,1726119040774,-500.0,0.00021917,2]
[337786512,1726119040783,-500.0,0.00021917,2]
[337786513,1726119040793,-299.36374818,0.00021917,2]
[337786516,1726119040815,-200.63625182,0.00021917,2]
[337786518,1726119040825,-1178.69,0.00021917,2]
[337786519,1726119040835,-500.0,0.00021917,2]
[337786521,1726119040845,-500.0,0.00021917,2]
[337786523,1726119040855,-502.57664126,0.00021917,2]
[337786525,1726119040866,-500.0,0.00021917,2]
[337786526,1726119040879,-505.23582222,0.00021917,2]
[337786528,1726119040889,-1320.81,0.00021917,2]
[337786530,1726119040900,-601.11,0.00021917,2]
[337786532,1726119040911,-500.0,0.00021917,2]
[337786535,1726119040922,-500.0,0.00021917,2]
[337786537,1726119040932,-500.0,0.00021917,2]
[337786539,1726119040943,-500.0,0.00021917,2]
[337786541,1726119040954,-500.0,0.00021917,2]
[337786543,1726119040965,-500.0,0.00021917,2]
[337786544,1726119040978,-507.2614601,0.00021917,2]
[337786545,1726119040989,-500.0,0.00021917,2]
[337786546,1726119040999,-501.76966104,0.00021917,2]
[337786547,1726119041010,-1457.46,0.00021917,2]
[337786548,1726119041020,-500.0,0.00021917,2]
[337786549,1726119041030,-500.0,0.00021917,2]
[337786550,1726119041041,-500.0,0.00021917,2]
[337786551,1726119041051,-500.0,0.00021917,2]
[337786552,1726119041061,-521.65970303,0.00021917,2]
[337786554,1726119041071,-500.0,0.00021917,2]
[337786556,1726119041080,-504.21309115,0.00021917,2]
[337786558,1726119041091,-500.0,0.00021917,2]
[337786560,1726119041102,-1528.89,0.00021917,2]
[337786561,1726119041111,-501.35762791,0.00021917,2]
[337786562,1726119041125,-500.0,0.00021917,2]
[337786563,1726119041136,-500.0,0.00021917,2]
[337786564,1726119041146,-500.0,0.00021917,2]
[337786565,1726119041156,-500.0,0.00021917,2]
[337786566,1726119041165,-548.70788153,0.00021917,2]
[337786567,1726119041175,-500.0,0.00021917,2]
[337786568,1726119041184,-277.39322571,0.00021917,2]
[337786569,1726119041194,-500.0,0.00021917,2]
[337786570,1726119041203,-500.0,0.00021917,2]
[337786571,1726119041213,-500.0,0.00021917,2]
[337786572,1726119041223,-500.0,0.00021917,2]
[337786573,1726119041232,-500.0,0.00021917,2]
[337786574,1726119041241,-500.0,0.00021917,2]
[337786575,1726119041251,-500.0,0.00021917,2]
[337786576,1726119041261,-500.0,0.00021917,2]
[337786577,1726119041270,-1265.69,0.00021917,2]
[337786578,1726119041279,-500.0,0.00021917,2]
[337786579,1726119041288,-500.0,0.00021917,2]
[337786580,1726119041298,-473.63739489,0.00021917,2]
[337786581,1726119041307,-500.0,0.00021917,2]
[337786582,1726119041317,-500.0,0.00021917,2]
[337786583,1726119041329,-1038.54,0.00021917,2]
[337786584,1726119041340,-500.70365415,0.00021917,2]
[337786585,1726119041351,-500.0,0.00021917,2]
[337786586,1726119041360,-500.0,0.00021917,2]
[337786587,1726119041370,-500.0,0.00021917,2]
[337786588,1726119041380,-500.0,0.00021917,2]
[337786589,1726119041390,-500.0,0.00021917,2]
[337786590,1726119041400,-500.0,0.00021917,2]
[337786591,1726119041410,-655.03,0.00021917,2]
[337786592,1726119041420,-503.98679247,0.00021917,2]
[337786593,1726119041431,-500.0,0.00021917,2]
[337786594,1726119041442,-500.0,0.00021917,2]
[337786595,1726119041452,-500.0,0.00021917,2]
[337786596,1726119041463,-504.24803342,0.00021917,2]
[337786597,1726119041473,-501.56409171,0.00021917,2]
[337786598,1726119041484,-500.0,0.00021917,2]
[337786599,1726119041494,-500.0,0.00021917,2]
[337786600,1726119041504,-500.0,0.00021917,2]
[337786601,1726119041513,-500.0,0.00021917,2]
[337786602,1726119041523,-500.0,0.00021917,2]
[337786603,1726119041533,-763.48,0.00021917,2]
[337786604,1726119041542,-500.0,0.00021917,2]
[337786605,1726119041552,-151.0,0.00021917,2]
[337786606,1726119041563,-500.0,0.00021917,2]
[337786607,1726119041572,-505.80811296,0.00021917,2]
[337786608,1726119041583,-483.26872439,0.00021917,2]
[337786609,1726119041595,-1605.94,0.00021917,2]
[337786610,1726119041605,-170.53035797,0.00021917,2]
[337786611,1726119041615,-500.0,0.00021917,2]
[337786612,1726119041625,-500.0,0.00021917,2]
[337786613,1726119041636,-500.0,0.00021917,2]
[337786614,1726119041646,-823.05,0.00021917,2]
[337786615,1726119041658,-500.0,0.00021917,2]
[337786616,1726119041668,-513.67154487,0.00021917,2]
[337786617,1726119041677,-500.0,0.00021917,2]
[337786618,1726119041687,-1208.12,0.00021917,2]
[337786619,1726119041697,-502.19304392,0.00021917,2]
[337786620,1726119041706,-500.0,0.00021917,2]
[337786621,1726119041716,-500.0,0.00021917,2]
[337786622,1726119041727,-500.0,0.00021917,2]
[337786623,1726119041736,-500.0,0.00021917,2]
[337786624,1726119041746,-525.5,0.00021917,2]
[337786625,1726119041755,-500.0,0.00021917,2]
[337786626,1726119041765,-510.92223258,0.00021917,2]
[337786627,1726119041775,-500.0,0.00021917,2]
[337786628,1726119041784,-536.14825483,0.00021917,2]
[337786629,1726119041794,-500.0,0.00021917,2]
[337786630,1726119041803,-362.44649439,0.00021917,2]
[337786631,1726119041951,-137.55350561,0.00021917,2]
[337786632,1726119041962,-500.0,0.00021917,2]
[337786633,1726119041971,-500.0,0.00021917,2]
[337786634,1726119041981,-381.63235164,0.00021917,2]
[337786635,1726119041990,-500.0,0.00021917,2]
[337786636,1726119041999,-523.91051114,0.00021917,2]
[337786637,1726119042009,-500.93809778,0.00021917,2]
[337786638,1726119042018,-500.0,0.00021917,2]
[337786639,1726119042028,-500.0,0.00021917,2]
[337786640,1726119042043,-505.25925374,0.00021917,2]
[337786641,1726119042057,-500.0,0.00021917,2]
[337786642,1726119042071,-501.77922434,0.00021917,2]
[337786643,1726119042084,-500.72930063,0.00021917,2]
[337786644,1726119042097,-500.0,0.00021917,2]
[337786645,1726119042107,-518.90428555,0.00021917,2]
[337786646,1726119042121,-500.0,0.00021917,2]
[337786647,1726119042134,-501.58225505,0.00021917,2]
[337786648,1726119042147,-858.75,0.00021917,2]
[337786649,1726119042161,-500.0,0.00021917,2]
[337786650,1726119042175,-500.0,0.00021917,2]
[337786651,1726119042188,-502.99622555,0.00021917,2]
[337786652,1726119042202,-500.0,0.00021917,2]
[337786653,1726119042216,-308.3565083,0.00021917,2]
[337786654,1726119042230,-1120.32,0.00021917,2]
[337786655,1726119042244,-500.0,0.00021917,2]
[337786656,1726119042256,-505.57282194,0.00021917,2]
[337786657,1726119042268,-500.0,0.00021917,2]
[337786658,1726119042282,-553.86701682,0.00021917,2]
[337786659,1726119042295,-500.0,0.00021917,2]
[337786660,1726119042306,-500.0,0.00021917,2]
[337786661,1726119042320,-514.89118887,0.00021917,2]
[337786662,1726119042333,-439.30293089,0.00021917,2]
[337786663,1726119042357,-1302.54706911,0.00021917,2]
[337786664,1726119042370,-500.0,0.00021917,2]
[337786665,1726119042381,-503.50902903,0.00021917,2]
[337786666,1726119042393,-501.56382273,0.00021917,2]
[337786667,1726119042405,-500.0,0.00021917,2]
[337786668,1726119042417,-486.05285791,0.00021917,2]
[337786669,1726119042430,-500.0,0.00021917,2]
[337786670,1726119042443,-671.73,0.00021917,2]
[337786671,1726119042455,-500.0,0.00021917,2]
[337786672,1726119042468,-500.0,0.00021917,2]
[337786673,1726119042482,-500.56302159,0.00021917,2]
[337786674,1726119042494,-500.0,0.00021917,2]
[337786675,1726119042507,-500.0,0.00021917,2]
[337786676,1726119042519,-500.0,0.00021917,2]
[337786677,1726119042530,-503.00755211,0.00021917,2]
[337786678,1726119042540,-151.0,0.00021917,2]
[337786679,1726119042550,-157.307529,0.00021917,2]
[337786680,1726119042562,-502.34866947,0.00021917,2]
[337786681,1726119042573,-1739.33,0.00021917,2]
[337786682,1726119042586,-151.0,0.00021917,2]
[337786683,1726119042599,-730.44,0.00021917,2]
[337786684,1726119042611,-690.327968,0.00021917,2]
[337786685,1726119042624,-216.35083756,0.00021917,2]
[337786686,1726119042635,-500.0,0.00021917,2]
[337786687,1726119042648,-500.0,0.00021917,2]
[337786688,1726119042660,-500.0,0.00021917,2]
[337786689,1726119042671,-502.84699057,0.00021917,2]
[337786690,1726119042685,-690.327968,0.00021917,2]
[337786691,1726119042697,-500.0,0.00021917,2]
[337786692,1726119042709,-504.29242289,0.00021917,2]
[337786693,1726119042720,-568.51517519,0.00021917,2]
[337786702,1726119043452,-523.36482481,0.00021917,2]
[337786705,1726119043463,-500.0,0.00021917,2]
[337786708,1726119043474,-500.0,0.00021917,2]
[337786709,1726119043486,-500.0,0.00021917,2]
[337786710,1726119043496,-618.35,0.00021917,2]
[337786711,1726119043507,-500.0,0.00021917,2]
[337786712,1726119043518,-500.0,0.00021917,2]
[337786713,1726119043528,-500.0,0.00021917,2]
[337786714,1726119043539,-500.0,0.00021917,2]
[337786715,1726119043551,-500.0,0.00021917,2]
[337786716,1726119043562,-500.30966426,0.00021917,2]
[337786717,1726119043573,-503.58237892,0.00021917,2]
[337786718,1726119043584,-500.0,0.00021917,2]
[337786719,1726119043595,-500.0,0.00021917,2]
[337786720,1726119043605,-500.0,0.00021917,2]
[337786721,1726119043617,-2342.51,0.00021917,2]
[337786722,1726119043628,-500.0,0.00021917,2]
[337786723,1726119043639,-500.0,0.00021917,2]
[337786724,1726119043650,-200.0,0.00021917,2]
[337786725,1726119043660,-1308.4,0.00021917,2]
[337786726,1726119043671,-504.3176939,0.00021917,2]
[337786727,1726119043682,-1485.03,0.00021917,2]
[337786728,1726119043692,-513.15700449,0.00021917,2]
[337786729,1726119043703,-503.08898454,0.00021917,2]
[337786730,1726119043714,-500.0,0.00021917,2]
[337786731,1726119043726,-544.39,0.00021917,2]
[337786732,1726119043740,-500.84350394,0.00021917,2]
[337786733,1726119043752,-500.0,0.00021917,2]
[337786734,1726119043762,-1609.15,0.00021917,2]
[337786735,1726119043773,-500.0,0.00021917,2]
[337786736,1726119043783,-500.0,0.00021917,2]
[337786737,1726119043794,-151.0,0.00021917,2]
[337786738,1726119043804,-151.0,0.00021917,2]
[337786739,1726119043815,-151.0,0.00021917,2]
[337786740,1726119043826,-151.0,0.00021917,2]
[337786741,1726119043837,-500.0,0.00021917,2]
[337786742,1726119043847,-500.0,0.00021917,2]
[337786743,1726119043856,-500.0,0.00021917,2]